fUSD/lending_fUSD_20260621
["ID","MTS","AMOUNT","RATE_DAILY","PERIOD"]
[425854233,1782003043000,-500.0,0.00013985,2]
[425854234,1782003043000,-500.0,0.00013985,2]
[425854236,1782003043000,-511.64223797,0.00013985,2]
[425854238,1782003043000,-500.0,0.00013985,2]
[425854257,1782003043000,-153.0,0.00014363,2]
[425854270,1782003043000,-151.0,0.00015528,2]
[425854261,1782003043000,-500.0,0.00014432,2]
[425854279,1782003043000,-500.0,0.00016438,2]
[425854280,1782003043000,-500.0,0.00016438,2]
[425854281,1782003043000,-500.0,0.00016438,2]
[425854282,1782003043000,-500.0,0.00016438,2]
[425854284,1782003043000,-500.0,0.00016438,2]
[425854286,1782003043000,-500.0,0.00016438,2]
[425854283,1782003043000,-500.0,0.00016438,2]
[425854287,1782003043000,-500.0,0.00016438,2]
[425854285,1782003043000,-500.0,0.00016438,2]
[425854289,1782003043000,-176.69,0.00017087,2]
[425854288,1782003043000,-365.36488659,0.00016677,2]
[425854290,1782003043000,-250.0,0.00017336,2]
[425854291,1782003043000,-176.69,0.00017537,2]
[425854292,1782003043000,-150.0,0.00017612,2]
[425854293,1782003043000,-1000.0,0.00017745,2]
[425854278,1782003043000,-348.11864598,0.00016438,2]
[425854276,1782003043000,-500.0,0.00016438,2]
[425854256,1782003043000,-300.06717808,0.00014325,2]
[425854273,1782003043000,-1500.0,0.00016129,2]
[425854277,1782003043000,-500.0,0.00016438,2]
[425854258,1782003043000,-600.0,0.0001438,2]
[425854262,1782003043000,-600.0,0.00014433,2]
[425854259,1782003043000,-600.0,0.00014432,2]
[425854263,1782003043000,-600.0,0.00014433,2]
[425854264,1782003043000,-250.0,0.00014433,2]
[425854265,1782003043000,-500.0,0.00014663,2]
[425854260,1782003043000,-318.8340395,0.00014432,2]
[425854267,1782003043000,-500.0,0.00014999,2]
[425854268,1782003043000,-500.0,0.00014999,2]
[425854269,1782003043000,-500.0,0.00014999,2]
[425854272,1782003043000,-300.0,0.00016,2]
[425854271,1782003043000,-150.0,0.000159,2]
[425854275,1782003043000,-500.0,0.00016438,2]
[425854274,1782003043000,-500.0,0.00016438,2]
[425854266,1782003043000,-500.0,0.00014663,2]
[425854311,1782003044000,-1954.31613602,0.000187,2]
[425854305,1782003044000,-1954.31613602,0.000184,2]
[425854306,1782003044000,-176.69,0.00018436,2]
[425854304,1782003044000,-166.38979656,0.000184,2]
[425854303,1782003044000,-6334.24033031,0.000183,2]
[425854302,1782003044000,-2500.0,0.00018297,2]
[425854295,1782003044000,-176.69,0.00017986,2]
[425854301,1782003044000,-1954.31613602,0.000182,2]
[425854296,1782003044000,-166.38979656,0.00018,2]
[425854297,1782003044000,-1954.31613602,0.00018,2]
[425854294,1782003044000,-6334.24033031,0.000179,2]
[425854299,1782003044000,-6334.24033031,0.000181,2]
[425854310,1782003044000,-6334.24033031,0.000187,2]
[425854300,1782003044000,-166.38979656,0.000182,2]
[425854308,1782003044000,-1954.31613602,0.000185,2]
[425854298,1782003044000,-350.0,0.00018,2]
[425854307,1782003044000,-6334.24033031,0.000185,2]
[425854325,1782003044000,-397.84647269,0.000192,2]
[425854322,1782003044000,-499.50294632,0.000192,2]
[425854323,1782003044000,-1442.25108828,0.000192,2]
[425854324,1782003044000,-407.41210518,0.000192,2]
[425854320,1782003044000,-3231.61241587,0.000192,2]
[425854309,1782003044000,-177.58,0.0001866,2]
[425854319,1782003044000,-1954.31613602,0.000191,2]
[425854321,1782003044000,-1160.87387984,0.000192,2]
[425854317,1782003044000,-5045.0401701,0.00019,2]
[425854316,1782003044000,-1954.31613602,0.000189,2]
[425854315,1782003044000,-176.69,0.00018886,2]
[425854314,1782003044000,-2773.47,0.00018809,2]
[425854313,1782003044000,-6334.24033031,0.000188,2]
[425854312,1782003044000,-500.0,0.00018712,2]
[425854318,1782003044000,-1289.20016021,0.00019,2]
[425854330,1782003045000,-1005.87528126,0.000193,2]
[425854329,1782003045000,-412.38875201,0.000193,2]
[425854328,1782003045000,-295.99808776,0.000192,2]
[425854334,1782003046000,-177.34566489,0.00019466,2]
[425854332,1782003046000,-5890.34789725,0.000194,2]
[425854336,1782003046000,-331.526912,0.00019466,2]
[425854333,1782003046000,-443.89243306,0.000194,2]
[425854335,1782003046000,-406.42812507,0.00019466,2]
[425854331,1782003046000,-536.05210275,0.000193,2]
[425854337,1782003047000,-1289.06687404,0.00019466,2]
[425854338,1782003047000,-1355.632424,0.00019466,2]
[425854340,1782003047000,-1360.0,0.00019466,2]
[425854341,1782003047000,-215.0,0.00019466,2]
[425854342,1782003047000,-934.0,0.00019466,2]
[425854347,1782003047000,-1870.13717384,0.000196,2]
[425854344,1782003047000,-748.45289953,0.000195,2]
[425854348,1782003047000,-421.65187754,0.000197,2]
[425854343,1782003047000,-1205.86323649,0.000195,2]
[425854346,1782003047000,-3142.58831104,0.000196,2]
[425854345,1782003047000,-1321.51484543,0.000196,2]
[425854339,1782003047000,-383.0,0.00019466,2]
[425854350,1782003047000,-63.02311192,0.0001989,2]
[425854361,1782003047000,-2557.48286814,0.00020145,2]
[425854360,1782003047000,-530.84603221,0.00020145,2]
[425854359,1782003047000,-2711.31,0.0002,2]
[425854355,1782003047000,-220.0,0.0002,2]
[425854358,1782003047000,-150.48531384,0.0002,20]
[425854357,1782003047000,-160.0,0.0002,2]
[425854354,1782003047000,-400.0,0.0002,2]
[425854352,1782003047000,-317.0,0.0002,2]
[425854353,1782003047000,-307.0,0.0002,2]
[425854351,1782003047000,-436.97688808,0.0001989,2]
[425854356,1782003047000,-510.0,0.0002,2]
[425854349,1782003047000,-1532.66425848,0.000197,2]
[425854362,1782003061000,306.10631564,0.00013022,2]
[425854364,1782003097000,500.0,0.00012923,2]
[425854366,1782003124000,226942.08621564,0.00012923,2]
[425854365,1782003124000,43.89368436,0.00012923,2]
[425854369,1782003235000,1266.97274755,0.00013,2]
[425854370,1782003282000,3453.95305607,8e-05,2]
[425854376,1782003473000,854.2677635,9.04e-05,2]
[425854379,1782003542000,-850.0,0.0001305,2]
[425854380,1782003559000,-773.62164031,0.0001305,2]
[425854381,1782003576000,-773.62164031,0.00013037,2]
[425854382,1782003593000,-926.37835969,0.00013037,2]
[425854383,1782003646000,-2421.83817203,0.0001305,2]
[425854384,1782003664000,-519.4,0.00013049,2]
[425854388,1782003715000,-791.14857175,0.0001305,2]
[425854390,1782003732000,-594.85615676,0.0001305,2]
[425854393,1782003782000,-500.0,0.0001305,2]
[425854397,1782003844000,-123.71618598,0.000135,2]
[425854396,1782003844000,-216.28381402,0.00013052,2]
[425854395,1782003844000,-160.0,0.00013052,2]
[425854398,1782003846000,-371.18725498,0.000135,2]
[425854399,1782003846000,-128.81274502,0.00013634,2]
[425854400,1782003848000,-21.18725498,0.00013634,2]
[425854401,1782003848000,-478.81274502,0.00013639,2]
[425854402,1782003849000,-500.0,0.00013639,2]
[425854410,1782003961000,-2421.83817203,0.0001342,2]
[425854411,1782003983000,-791.14857175,0.0001342,2]
[425854412,1782004002000,-791.14857175,0.0001342,2]
[425854413,1782004020000,-151.0,0.0001342,2]
[425854415,1782004069000,-1653.86808024,0.00013352,2]
[425854417,1782004086000,-151.0,0.0001342,2]
[425854419,1782004086000,-216.28381402,0.0001342,2]
[425854416,1782004086000,-263.40869219,0.00013419,2]
[425854420,1782004086000,-150.0,0.00013488,2]
[425854421,1782004086000,-150.0,0.00013488,2]
[425854418,1782004086000,-152.0,0.0001342,2]
[425854423,1782004163000,-773.62164031,0.00013457,2]
[425854424,1782004163000,-1714.85221108,0.00013467,2]
[425854454,1782004231000,-309.0,0.00013467,2]
[425854451,1782004231000,-216.28381402,0.00013467,2]
[425854452,1782004231000,-320.0,0.00013467,2]
[425854450,1782004231000,-429.25684513,0.00013436,2]
[425854453,1782004231000,-319.0,0.00013467,2]
[425854455,1782004231000,-311.0,0.00013467,2]
[425854456,1782004231000,-359.82858215,0.00013536,2]
[425854449,1782004231000,-2516.559667,0.000134,2]
[425854459,1782004231000,-1480.67887695,0.00013536,2]
[425854458,1782004231000,-1675.19517774,0.00013536,2]
[425854461,1782004231000,-3390.6906,0.00013536,2]
[425854460,1782004231000,-1025.3129221,0.00013536,2]
[425854462,1782004231000,-197.71925498,0.00013639,2]
[425854463,1782004231000,-157.67,0.00013658,2]
[425854464,1782004231000,-1169.78038285,0.00013721,2]
[425854465,1782004231000,-760.3859301,0.00013721,2]
[425854457,1782004231000,-949.59332134,0.00013536,2]
[425854486,1782004232000,-151.0,0.00014,2]
[425854490,1782004232000,-150.0,0.00014,2]
[425854484,1782004232000,-151.0,0.00014,2]
[425854485,1782004232000,-150.0,0.00014,2]
[425854487,1782004232000,-151.0,0.00014,2]
[425854494,1782004232000,-151.0,0.00014,2]
[425854489,1782004232000,-152.0,0.00014,2]
[425854492,1782004232000,-321.0,0.00014,2]
[425854483,1782004232000,-242.420163,0.00014,2]
[425854495,1782004232000,-312.0,0.00014,2]
[425854493,1782004232000,-317.0,0.00014,2]
[425854496,1782004232000,-321.0,0.00014,2]
[425854491,1782004232000,-318.0,0.00014,2]
[425854482,1782004232000,-319.0,0.00014,2]
[425854480,1782004232000,-311.0,0.0001399,2]
[425854481,1782004232000,-456.0,0.0001399,2]
[425854478,1782004232000,-309.0,0.0001399,2]
[425854476,1782004232000,-184.38608453,0.00013989,2]
[425854475,1782004232000,-150.0,0.00013989,2]
[425854472,1782004232000,-165.85516438,0.0001389,2]
[425854477,1782004232000,-27203.0453305,0.0001399,2]
[425854469,1782004232000,-283.7555,0.0001389,2]
[425854474,1782004232000,-165.85516438,0.0001389,2]
[425854470,1782004232000,-165.85516438,0.0001389,2]
[425854471,1782004232000,-165.85516438,0.0001389,2]
[425854467,1782004232000,-246.26825091,0.00013889,2]
[425854468,1782004232000,-164.54382157,0.00013889,2]
[425854497,1782004232000,-150.0,0.00014,2]
[425854479,1782004232000,-313.0,0.0001399,2]
[425854466,1782004232000,-4650.47368705,0.00013721,2]
[425854499,1782004232000,-317.0,0.00014,2]
[425854502,1782004232000,-313.0,0.00014,2]
[425854500,1782004232000,-150.0,0.00014,2]
[425854526,1782004232000,-4500.0,0.000148,5]
[425854527,1782004232000,-199.18537976,0.00014811,2]
[425854525,1782004232000,-1061.92046565,0.000148,2]
[425854524,1782004232000,-6825.7615,0.000148,2]
[425854523,1782004232000,-1368.28363427,0.000147,5]
[425854528,1782004232000,-700.0,0.00014811,2]
[425854521,1782004232000,-261.2092,0.000147,2]
[425854520,1782004232000,-166.7,0.00014696,2]
[425854518,1782004232000,-2040.78573392,0.000146,5]
[425854519,1782004232000,-659.21426608,0.000146,5]
[425854517,1782004232000,-1800.0,0.000145,5]
[425854515,1782004232000,-588.95474348,0.00014274,2]
[425854513,1782004232000,-170.25,0.00014113,2]
[425854522,1782004232000,-2231.71636573,0.000147,5]
[425854516,1782004232000,-900.0,0.000144,5]
[425854501,1782004232000,-321.0,0.00014,2]
[425854511,1782004232000,-32.03150287,0.00014,2]
[425854498,1782004232000,-317.0,0.00014,2]
[425854503,1782004232000,-16.96849713,0.00014,2]
[425854506,1782004232000,-317.0,0.00014,2]
[425854505,1782004232000,-152.0,0.00014,2]
[425854507,1782004232000,-318.0,0.00014,2]
[425854509,1782004232000,-314.0,0.00014,2]
[425854508,1782004232000,-315.0,0.00014,2]
[425854512,1782004232000,-500.0,0.00014,2]
[425854510,1782004232000,-279.96849713,0.00014,2]
[425854514,1782004232000,-150.0,0.00014237,2]
[425854504,1782004232000,-304.03150287,0.00014,2]
[425854562,1782004238000,-981.77697472,0.000149,2]
[425854555,1782004238000,-228.56897717,0.00014889,2]
[425854557,1782004238000,-198.64149702,0.000149,2]
[425854556,1782004238000,-1079.3893,0.000149,2]
[425854558,1782004238000,-900.0,0.000149,5]
[425854565,1782004238000,-2000.0,0.00014985,2]
[425854567,1782004238000,-1346.64,0.00014985,2]
[425854561,1782004238000,-167.62041265,0.000149,2]
[425854563,1782004238000,-1061.92046564,0.000149,2]
[425854560,1782004238000,-698.40001162,0.000149,2]
[425854559,1782004238000,-111035.13013991,0.000149,2]
[425854554,1782004238000,-300.0,0.00014889,2]
[425854564,1782004238000,-189.30936019,0.000149,2]
[425854553,1782004238000,-300.0,0.00014889,2]
[425854539,1782004238000,-126.0,0.00014068,2]
[425854552,1782004238000,-1061.92046564,0.00014889,2]
[425854550,1782004238000,-1061.92046564,0.00014867,2]
[425854547,1782004238000,-1061.92046564,0.00014833,2]
[425854549,1782004238000,-1061.92046564,0.00014856,2]
[425854548,1782004238000,-1061.92046564,0.00014844,2]
[425854546,1782004238000,-1061.92046564,0.00014822,2]
[425854544,1782004238000,-300.0,0.00014814,2]
[425854545,1782004238000,-300.0,0.00014814,2]
[425854542,1782004238000,-14.2237492,0.00014811,2]
[425854543,1782004238000,-231.86103774,0.00014814,2]
[425854541,1782004238000,-148.51133668,0.00014811,2]
[425854540,1782004238000,-303.25684512,0.00014068,2]
[425854538,1782004238000,-297.0,0.00013467,2]
[425854568,1782004238000,-150.0,0.00014986,2]
[425854551,1782004238000,-1061.92046564,0.00014878,2]
[425854566,1782004238000,-380.13,0.00014985,2]
[425854609,1782004238000,-3227.36,0.00015,2]
[425854570,1782004238000,-193.89926834,0.0001499,2]
[425854569,1782004238000,-150.0,0.00014986,2]
[425854604,1782004238000,-156553.28258088,0.00015,2]
[425854601,1782004238000,-4500.0,0.00015,2]
[425854600,1782004238000,-3327480.85771607,0.00015,2]
[425854596,1782004238000,-500.0,0.00014999,2]
[425854598,1782004238000,-500.0,0.00014999,2]
[425854595,1782004238000,-500.0,0.00014999,2]
[425854594,1782004238000,-500.0,0.00014999,2]
[425854589,1782004238000,-504.96572712,0.00014999,2]
[425854583,1782004238000,-500.0,0.00014999,2]
[425854585,1782004238000,-499.99999984,0.00014999,2]
[425854592,1782004238000,-500.0,0.00014999,2]
[425854593,1782004238000,-500.0,0.00014999,2]
[425854591,1782004238000,-500.0,0.00014999,2]
[425854590,1782004238000,-500.0,0.00014999,2]
[425854586,1782004238000,-500.0,0.00014999,2]
[425854587,1782004238000,-500.0,0.00014999,2]
[425854571,1782004238000,-193.89926834,0.0001499,2]
[425854573,1782004238000,-500.0,0.00014999,2]
[425854577,1782004238000,-500.0,0.00014999,2]
[425854578,1782004238000,-500.0,0.00014999,2]
[425854574,1782004238000,-500.0,0.00014999,2]
[425854575,1782004238000,-500.0,0.00014999,2]
[425854572,1782004238000,-156.9,0.00014999,2]
[425854580,1782004238000,-500.0,0.00014999,2]
[425854579,1782004238000,-500.0,0.00014999,2]
[425854582,1782004238000,-500.0,0.00014999,2]
[425854584,1782004238000,-500.0,0.00014999,2]
[425854588,1782004238000,-261.14107028,0.00014999,2]
[425854576,1782004238000,-177.91,0.00014999,2]
[425854680,1782004240000,-150.0,0.000159,2]
[425854684,1782004240000,-500.0,0.00016438,2]
[425854683,1782004240000,-1500.0,0.00016353,2]
[425854686,1782004240000,-161.59,0.00016539,2]
[425854685,1782004240000,-260.90207178,0.00016438,2]
[425854687,1782004240000,-3149.3727187,0.00016546,2]
[425854689,1782004240000,-169.92,0.00017568,2]
[425854693,1782004240000,-285.334319,0.00018094,2]
[425854692,1782004240000,-981.77697472,0.00017876,2]
[425854691,1782004240000,-250.0,0.00017795,2]
[425854690,1782004240000,-170.25,0.00017641,2]
[425854695,1782004240000,-53405.5218785,0.00018904,2]
[425854694,1782004240000,-161.59,0.00018193,2]
[425854688,1782004240000,-161.59,0.00017366,2]
[425854678,1782004240000,-591.67,0.000153,2]
[425854666,1782004240000,-2272903.66137216,0.00015,2]
[425854682,1782004240000,-433.0,0.00016311,2]
[425854677,1782004240000,-850.38,0.000153,2]
[425854676,1782004240000,-160.0,0.00015227,2]
[425854674,1782004240000,-150.0,0.00015068,2]
[425854675,1782004240000,-255.0,0.00015108,2]
[425854672,1782004240000,-6258.689,0.00015014,2]
[425854673,1782004240000,-150.0,0.00015039,2]
[425854670,1782004240000,-159.0,0.00015,2]
[425854669,1782004240000,-159.0,0.00015,2]
[425854668,1782004240000,-345864.24222652,0.00015,2]
[425854671,1782004240000,-159.0,0.00015,2]
[425854667,1782004240000,-8111.73007846,0.00015,2]
[425854665,1782004240000,-429.25684512,0.000147,2]
[425854697,1782004240000,-272.56100555,0.00019,2]
[425854679,1782004240000,-190.29,0.00015696,2]
[425854696,1782004240000,-154.0,0.00018919,5]
[425854681,1782004240000,-314.7019278,0.00016,2]
[425854707,1782004240000,-283.0,0.0002,2]
[425854712,1782004240000,-9999.99,0.00020951,2]
[425854713,1782004240000,-9999.99,0.00020951,2]
[425854718,1782004240000,-166.0,0.00021,2]
[425854720,1782004240000,-155.0,0.00021,2]
[425854721,1782004240000,-283.0,0.00021,2]
[425854726,1782004240000,-159.52639849,0.00021285,2]
[425854716,1782004240000,-999.99,0.00020951,2]
[425854730,1782004240000,-151.0,0.00021285,2]
[425854725,1782004240000,-500.0,0.00021285,2]
[425854729,1782004240000,-500.0,0.00021285,2]
[425854722,1782004240000,-1140.68472457,0.00021,2]
[425854724,1782004240000,-578.20924308,0.00021285,2]
[425854727,1782004240000,-151.0,0.00021285,2]
[425854698,1782004240000,-914.46552304,0.00019,2]
[425854723,1782004240000,-170.25,0.00021169,2]
[425854717,1782004240000,-9999.99,0.00020951,2]
[425854728,1782004240000,-151.0,0.00021285,2]
[425854709,1782004240000,-510.0,0.0002,2]
[425854715,1782004240000,-150.99,0.00020951,2]
[425854704,1782004240000,-158.0,0.0002,2]
[425854701,1782004240000,-3647.0,0.0001933,2]
[425854699,1782004240000,-383.0,0.00019271,2]
[425854706,1782004240000,-151.0,0.0002,2]
[425854702,1782004240000,-3560.0,0.00019466,2]
[425854703,1782004240000,-302.93579387,0.0001995,2]
[425854708,1782004240000,-152.0,0.0002,2]
[425854705,1782004240000,-292.0,0.0002,2]
[425854719,1782004240000,-292.0,0.00021,2]
[425854700,1782004240000,-6081.0,0.0001933,2]
[425854711,1782004240000,-981.77697472,0.00020851,2]
[425854710,1782004240000,-150.0,0.0002058,2]
[425854714,1782004240000,-189.64,0.00020951,7]
[425854765,1782004241000,-159.52639849,0.00022381,2]
[425854776,1782004241000,-153.89,0.0002291,2]
[425854764,1782004241000,-3647.0,0.0002233,2]
[425854767,1782004241000,-500.0,0.00022466,2]
[425854768,1782004241000,-500.0,0.00022466,2]
[425854770,1782004241000,-500.0,0.00022466,2]
[425854769,1782004241000,-504.04956516,0.00022466,2]
[425854763,1782004241000,-6081.0,0.0002233,2]
[425854772,1782004241000,-500.0,0.00022466,2]
[425854771,1782004241000,-500.0,0.00022466,2]
[425854774,1782004241000,-150.0,0.0002254,2]
[425854773,1782004241000,-3560.0,0.00022466,2]
[425854766,1782004241000,-500.0,0.00022466,2]
[425854775,1782004241000,-200.0,0.00022866,2]
[425854778,1782004241000,-292.0,0.00023,2]
[425854782,1782004241000,-153.89,0.0002362,2]
[425854780,1782004241000,-159.52639849,0.00023477,2]
[425854781,1782004241000,-517.0,0.00023616,7]
[425854779,1782004241000,-283.0,0.00023,2]
[425854784,1782004241000,-316.0,0.000237,2]
[425854783,1782004241000,-150.0,0.00023667,2]
[425854785,1782004241000,-510.0,0.0002375,5]
[425854786,1782004241000,-698.4000116,0.000239,2]
[425854790,1782004241000,-159.52639849,0.00024025,2]
[425854788,1782004241000,-292.0,0.00024,2]
[425854761,1782004241000,-150.0,0.00022,2]
[425854789,1782004241000,-283.0,0.00024,2]
[425854777,1782004241000,-159.52639849,0.00022929,2]
[425854762,1782004241000,-153.89,0.00022201,2]
[425854743,1782004241000,-500.0,0.00021285,2]
[425854760,1782004241000,-1451.84,0.00022,2]
[425854787,1782004241000,-167.62041263,0.000239,2]
[425854732,1782004241000,-151.0,0.00021285,2]
[425854731,1782004241000,-500.0,0.00021285,2]
[425854734,1782004241000,-151.0,0.00021285,2]
[425854733,1782004241000,-500.0,0.00021285,2]
[425854736,1782004241000,-151.0,0.00021285,2]
[425854738,1782004241000,-151.0,0.00021285,2]
[425854739,1782004241000,-500.0,0.00021285,2]
[425854735,1782004241000,-500.0,0.00021285,2]
[425854737,1782004241000,-500.0,0.00021285,2]
[425854740,1782004241000,-151.0,0.00021285,2]
[425854744,1782004241000,-151.0,0.00021285,2]
[425854745,1782004241000,-500.0,0.00021285,2]
[425854759,1782004241000,-283.0,0.00022,2]
[425854741,1782004241000,-500.0,0.00021285,2]
[425854747,1782004241000,-500.0,0.00021285,2]
[425854746,1782004241000,-151.0,0.00021285,2]
[425854748,1782004241000,-500.0,0.00021285,2]
[425854750,1782004241000,-153.89,0.00021491,2]
[425854752,1782004241000,-159.52639849,0.00021833,2]
[425854756,1782004241000,-5000.0,0.00021918,2]
[425854749,1782004241000,-184.0,0.00021442,2]
[425854757,1782004241000,-450.0,0.00022,2]
[425854751,1782004241000,-215.00239412,0.00021707,2]
[425854753,1782004241000,-510.0,0.00021875,3]
[425854755,1782004241000,-500.0,0.00021917,2]
[425854754,1782004241000,-500.0,0.00021917,2]
[425854758,1782004241000,-292.0,0.00022,2]
[425854742,1782004241000,-151.0,0.00021285,2]
[425854795,1782004241000,-159.52639849,0.00024573,2]
[425854816,1782004241000,-408.127825,0.00026412,2]
[425854794,1782004241000,-1000.0,0.000245,2]
[425854825,1782004241000,-196.23949932,0.00027397,2]
[425854831,1782004241000,-160.43,0.0002755,30]
[425854827,1782004241000,-150.0,0.00027398,2]
[425854830,1782004241000,-189.55,0.0002755,30]
[425854826,1782004241000,-5978.24,0.00027397,10]
[425854829,1782004241000,-510.0,0.000275,9]
[425854828,1782004241000,-500.0,0.000275,7]
[425854833,1782004241000,-156.09,0.0002755,2]
[425854837,1782004241000,-517.12,0.00027732,10]
[425854834,1782004241000,-951.32,0.0002763,120]
[425854835,1782004241000,-189.55,0.00027711,7]
[425854838,1782004241000,-156.09,0.00027743,7]
[425854845,1782004241000,-573.64,0.00027913,2]
[425854832,1782004241000,-161.46,0.0002755,30]
[425854836,1782004241000,-161.46,0.00027731,7]
[425854840,1782004241000,-189.55,0.00027872,2]
[425854843,1782004241000,-482.42,0.00027907,2]
[425854841,1782004241000,-644.29,0.00027907,2]
[425854791,1782004241000,-150.63,0.00024056,2]
[425854844,1782004241000,-161.46,0.00027912,2]
[425854846,1782004241000,-573.61,0.00027913,2]
[425854847,1782004241000,-573.44,0.00027913,2]
[425854848,1782004241000,-185.19,0.00027913,2]
[425854849,1782004241000,-644.3,0.00027918,2]
[425854852,1782004241000,-482.4,0.00027918,2]
[425854850,1782004241000,-482.42,0.00027918,2]
[425854853,1782004241000,-396.26,0.00027918,2]
[425854851,1782004241000,-573.64,0.00027918,2]
[425854842,1782004241000,-573.61,0.00027907,2]
[425854824,1782004241000,-238.0605273,0.00027397,2]
[425854839,1782004241000,-160.43,0.00027791,7]
[425854822,1782004241000,-185.2,0.00027096,2]
[425854823,1782004241000,-156.1,0.00027263,2]
[425854792,1782004241000,-153.89,0.00024329,2]
[425854793,1782004241000,-53405.5218785,0.00024485,2]
[425854796,1782004241000,-1000.0,0.00024658,2]
[425854803,1782004241000,-159.52639849,0.00025121,2]
[425854800,1782004241000,-294.0,0.00025,2]
[425854804,1782004241000,-6081.0,0.0002533,2]
[425854799,1782004241000,-178.47,0.00025,14]
[425854798,1782004241000,-150.0,0.0002485,2]
[425854797,1782004241000,-156.1,0.00024658,2]
[425854806,1782004241000,-156.1,0.00025526,7]
[425854801,1782004241000,-287.0,0.00025,2]
[425854805,1782004241000,-3647.0,0.0002533,2]
[425854807,1782004241000,-510.0,0.00025625,7]
[425854802,1782004241000,-153.89,0.00025038,2]
[425854808,1782004241000,-159.52639849,0.00025669,2]
[425854821,1782004241000,-1000.0,0.00027,2]
[425854809,1782004241000,-150.0,0.00026093,2]
[425854815,1782004241000,-158.0,0.00026412,5]
[425854820,1782004241000,-564.27,0.00026991,2]
[425854814,1782004241000,-156.1,0.00026394,30]
[425854819,1782004241000,-951.32,0.00026945,120]
[425854811,1782004241000,-159.52639849,0.00026217,2]
[425854812,1782004241000,-151.0,0.00026296,2]
[425854818,1782004241000,-159.52639853,0.00026765,2]
[425854813,1782004241000,-500.0,0.00026329,2]
[425854817,1782004241000,-430.125786,0.00026413,2]
[425854810,1782004241000,-310.0,0.000262,2]
[425854873,1782004242000,-3647.0,0.0002833,2]
[425854891,1782004242000,-573.61,0.00028735,2]
[425854878,1782004242000,-39999.0,0.0002858,3]
[425854875,1782004242000,-161.46,0.00028456,2]
[425854871,1782004242000,-161.46,0.00028275,7]
[425854881,1782004242000,-189.55,0.00028677,7]
[425854880,1782004242000,-951.32,0.00028671,120]
[425854882,1782004242000,-185.2,0.00028706,2]
[425854883,1782004242000,-300.0,0.00028717,7]
[425854886,1782004242000,-573.61,0.00028729,2]
[425854884,1782004242000,-482.4,0.00028729,2]
[425854888,1782004242000,-573.61,0.00028729,2]
[425854890,1782004242000,-573.61,0.00028729,2]
[425854885,1782004242000,-573.64,0.00028729,2]
[425854887,1782004242000,-573.61,0.00028729,2]
[425854889,1782004242000,-185.13,0.00028729,2]
[425854893,1782004242000,-185.19,0.00028735,2]
[425854876,1782004242000,-160.43,0.00028516,7]
[425854892,1782004242000,-185.19,0.00028735,2]
[425854877,1782004242000,-189.55,0.00028516,30]
[425854863,1782004242000,-951.32,0.00028096,120]
[425854874,1782004242000,-189.55,0.00028355,2]
[425854896,1782004242000,-644.29,0.00028735,2]
[425854854,1782004242000,-396.7,0.00027918,2]
[425854855,1782004242000,-642.9,0.00027918,2]